bitfinex/quotes_SOLUSD_20211001
["timestamp","ask_amount","ask_price","bid_price","bid_amount"]
[1633127676954,52.11766966,159.71,159.51,501.46899685]
[1633127677156,0.0422088,159.7,159.51,501.46899685]
[1633127677754,0.0422088,159.7,159.52,24.35374519]
[1633127678153,0.0422088,159.68,159.52,24.35374519]
[1633127678553,0.0422088,159.68,159.52,23.85374519]
[1633127679154,0.0422088,159.68,159.52,52.24667153]
[1633127679354,33.22366966,159.71,159.52,52.24667153]
[1633127679355,0.0422088,159.7,159.52,52.24667153]
[1633127679556,0.0422088,159.7,159.52,51.74667153]
[1633127679758,31.22366966,159.71,159.52,51.74667153]
[1633127679956,31.26587846,159.71,159.52,51.74667153]
[1633127681157,0.0422088,159.7,159.52,51.74667153]
[1633127682561,0.0422088,159.7,159.52,53.74667153]
[1633127682760,31.22366966,159.71,159.52,52.74667153]
[1633127683963,0.0422088,159.7,159.52,52.74667153]
[1633127684362,31.22366966,159.71,159.52,51.74667153]
[1633127684562,31.26587846,159.71,159.52,51.74667153]
[1633127685563,31.26587846,159.71,159.53,61.83]
[1633127685964,31.26587846,159.71,159.53,90.34231523]
[1633127686163,31.26587846,159.71,159.54,2.0]
[1633127686365,31.26587846,159.71,159.55,22.17868105]
[1633127686564,31.22366966,159.71,159.55,50.69099628]
[1633127686965,31.22366966,159.71,159.56,28.51231523]
[1633127687765,0.0422088,159.74,159.71,31.22366966]
[1633127687966,0.0422088,159.78,159.71,30.72366966]
[1633127688165,0.0422088,159.83,159.71,30.72366966]
[1633127688565,0.0422088,159.84,159.71,30.72366966]
[1633127689967,0.0422088,159.88,159.71,30.72366966]
[1633127692368,0.0422088,159.88,159.71,92.55366966]
[1633127692569,0.0422088,159.9,159.72,28.66193537]
[1633127693568,0.0422088,159.9,159.72,55.65758394]
[1633127693768,0.0422088,159.92,159.72,55.65758394]
[1633127693972,0.0422088,159.92,159.72,57.65758394]
[1633127694169,0.0422088,159.92,159.73,61.83]
[1633127694368,0.0422088,159.95,159.73,61.83]
[1633127694568,0.0422088,159.95,159.74,43.49328746]
[1633127694769,0.0422088,159.95,159.75,26.9014182]
[1633127694969,2.0,159.94,159.75,26.9014182]
[1633127695170,2.0422088,159.94,159.75,26.9014182]
[1633127695571,0.0422088,159.93,159.75,26.9014182]
[1633127695969,0.0422088,159.91,159.75,26.9014182]
[1633127696170,0.0422088,159.92,159.75,26.9014182]
[1633127696770,2.0,159.91,159.75,26.9014182]
[1633127696973,0.0422088,159.9,159.75,26.9014182]
[1633127697774,2.0,159.89,159.75,26.9014182]
[1633127697977,2.0,159.89,159.71,30.72366966]
[1633127697978,0.0422088,159.88,159.71,30.72366966]
[1633127698174,2.0,159.87,159.71,30.72366966]
[1633127698375,0.0422088,159.86,159.71,30.72366966]
[1633127698574,2.0,159.85,159.71,30.72366966]
[1633127698774,0.0422088,159.84,159.71,30.72366966]
[1633127700175,2.0,159.85,159.71,30.72366966]
[1633127700579,0.0422088,159.83,159.71,30.72366966]
[1633127700775,0.0422088,159.84,159.71,30.72366966]
[1633127701778,2.0,159.83,159.71,30.72366966]
[1633127701978,0.0422088,159.82,159.71,30.72366966]
[1633127702178,2.0422088,159.82,159.71,30.72366966]
[1633127702381,0.0422088,159.81,159.71,30.72366966]
[1633127702581,2.0,159.8,159.71,30.72366966]
[1633127702781,0.0422088,159.79,159.71,30.72366966]
[1633127702982,21.1322088,159.79,159.71,30.72366966]
[1633127703198,0.0422088,159.78,159.71,30.72366966]
[1633127704000,2.0422088,159.78,159.71,30.72366966]
[1633127704395,2.0422088,159.78,159.71,29.72366966]
[1633127706601,0.0422088,159.77,159.71,29.72366966]
[1633127707201,2.0422088,159.78,159.71,29.72366966]
[1633127707401,2.0422088,159.78,159.71,28.72366966]
[1633127708002,4.38076023,159.71,159.53,642.29409212]
[1633127708202,22.79476023,159.71,159.53,561.14639212]
[1633127708404,22.79476023,159.71,159.53,557.52381468]
[1633127708602,24.83696903,159.71,159.48,3.62400909]
[1633127708802,24.83696903,159.71,159.47,3.62404319]
[1633127709004,24.83696903,159.71,159.48,33.22903589]
[1633127709202,24.83696903,159.71,159.49,3.49463202]
[1633127709403,15.6648,159.7,159.49,3.49463202]
[1633127709603,15.6648,159.7,159.48,56.60006454]
[1633127709803,15.6648,159.7,159.49,3.49419794]
[1633127710203,15.6648,159.7,159.5,26.99564857]
[1633127710404,15.6648,159.7,159.51,23.25317669]
[1633127711006,529.92212533,159.68,159.51,23.25317669]
[1633127711207,547.90212533,159.68,159.51,23.25317669]
[1633127711407,2.0,159.67,159.51,23.25317669]
[1633127712203,2.0,159.67,159.51,50.24882526]
[1633127712404,2.0,159.67,159.51,23.25317669]
[1633127713204,2.0,159.67,159.51,22.25317669]
[1633127713406,2.0,159.67,159.44,79.50823746]
[1633127713610,0.0422088,159.66,159.44,75.8843]
[1633127713806,2.0,159.65,159.44,75.8843]
[1633127714007,0.0422088,159.64,159.44,75.8843]
[1633127714206,0.0422088,159.62,159.44,153.7736]
[1633127714407,2.0,159.61,159.44,77.8893]
[1633127714607,0.0422088,159.6,159.44,77.8893]
[1633127714806,0.0422088,159.57,159.44,77.8893]
[1633127715007,0.0422088,159.57,159.42,25.26138531]
[1633127715008,2.0,159.56,159.42,25.26138531]
[1633127715207,0.0422088,159.55,159.45,28.50281248]
[1633127715407,2.0422088,159.55,159.45,28.50281248]
[1633127715607,0.0422088,159.54,159.45,28.50281248]
[1633127715807,2.0,159.59,159.46,33.0]
[1633127716008,2.0,159.59,159.46,121.2901]
[1633127716407,2.0,159.59,159.46,88.2901]
[1633127716807,0.02098,159.59,159.47,56.0]
[1633127717008,0.02098,159.59,159.48,23.05005622]
[1633127717210,2.0,159.66,159.49,0.0212976]
[1633127717809,2.0,159.66,159.49,25.07344617]
[1633127718011,2.0,159.66,159.5,0.0212976]
[1633127718208,6.38076023,159.71,159.5,22.3552976]
[1633127718408,6.38076023,159.71,159.51,28.08402215]
[1633127718611,6.38076023,159.71,159.52,0.0212976]
[1633127718817,6.38076023,159.71,159.52,3.51144379]
[1633127719012,6.38076023,159.71,159.53,190.7693976]
[1633127719210,6.38076023,159.71,159.54,177.94264653]
[1633127719411,6.38076023,159.71,159.55,0.0212976]
[1633127719615,2.0,159.78,159.56,95.0]
[1633127719811,2.0,159.78,159.57,26.59060027]
[1633127720011,2.0,159.78,159.58,0.0212976]
[1633127720212,42.5620226,159.77,159.58,0.0212976]
[1633127720411,2.0,159.76,159.57,26.56930267]
[1633127720611,0.02088,159.75,159.57,26.56930267]
[1633127720811,15.6622,159.73,159.57,26.56930267]
[1633127721013,2.02088,159.72,159.57,26.56930267]
[1633127721211,0.02088,159.71,159.48,0.0212976]
[1633127721413,2.0,159.7,159.46,0.0212976]
[1633127721811,2.0,159.7,159.43,3.51337934]
[1633127722013,2.0,159.7,159.44,0.0212976]
[1633127722214,2.0,159.7,159.46,23.73857079]
[1633127722412,2.0,159.7,159.47,25.84568255]
[1633127722624,2.0,159.7,159.51,0.0212976]
[1633127723611,2.0,159.7,159.48,74.1747]
[1633127723813,2.0,159.7,159.51,0.0212976]
[1633127724015,2.0,159.7,159.49,0.0212976]
[1633127724213,2.0,159.7,159.48,75.4907976]
[1633127724412,2.0,159.7,159.49,141.08585793]
[1633127724613,2.0,159.7,159.5,32.11317077]
[1633127724814,2.0,159.7,159.51,3.51293556]
[1633127725014,2.0,159.7,159.53,3.62232776]
[1633127725214,2.0,159.7,159.54,28.3045286]
[1633127726015,359.53115266,159.68,159.54,28.3045286]
[1633127726216,361.53115266,159.68,159.54,28.3045286]
[1633127726416,361.53115266,159.68,159.51,0.0212976]
[1633127726619,361.53115266,159.68,159.49,0.0212976]
[1633127726815,361.53115266,159.68,159.48,75.4907976]
[1633127727017,361.53115266,159.68,159.49,3.49499292]
[1633127727216,361.53115266,159.68,159.49,24.72393412]
[1633127727415,361.53115266,159.68,159.5,30.17913571]
[1633127727615,361.53115266,159.68,159.51,7.14016663]
[1633127727816,2.0,159.68,159.52,0.0212976]
[1633127728417,2.0,159.68,159.51,3.51605645]
[1633127728623,2.0,159.68,159.52,0.0212976]
[1633127729018,2.0,159.68,159.51,0.0212976]
[1633127729618,2.0,159.68,159.51,3.49565847]
[1633127730019,2.0,159.68,159.51,2.99565847]
[1633127730420,2.0,159.68,159.5,23.03853641]
[1633127732222,2.0,159.68,159.5,23.05983401]
[1633127732422,2.0,159.68,159.5,26.68652108]
[1633127732622,2.0,159.68,159.51,3.62640353]
[1633127733324,2.0,159.68,159.52,65.45677072]
[1633127733523,2.0,159.72,159.55,3.62597202]
[1633127733723,2.0,159.72,159.56,30.39210393]
[1633127733927,2.0,159.72,159.57,0.0212976]
[1633127734325,2.0,159.72,159.57,3.64712661]
[1633127734522,2.0,159.72,159.58,0.0212976]
[1633127734724,2.0,159.72,159.58,22.7882976]
[1633127734923,481.03734083,159.73,159.59,93.39474753]
[1633127735127,2.0,159.79,159.62,3.62456348]
[1633127735324,2.0,159.79,159.63,27.92811303]
[1633127735524,2.0,159.79,159.64,0.0212976]
[1633127736526,2.0,159.79,159.64,0.02088]
[1633127738433,2.0,159.85,159.64,0.02088]
[1633127738634,2.0,159.85,159.64,40.20189523]
[1633127738834,2.0,159.85,159.65,61.85088]
[1633127739034,2.0,159.85,159.66,22.97464823]
[1633127741036,2.0,159.85,159.67,61.83]
[1633127741236,2.0,159.85,159.67,81.095]
[1633127741638,2.0,159.85,159.67,19.265]
[1633127742039,2.02088,159.85,159.66,22.97464823]
[1633127742238,0.02088,159.85,159.66,22.97464823]
[1633127742437,2.13,159.84,159.66,22.97464823]
[1633127742637,2.15088,159.83,159.66,22.97464823]
[1633127742836,2.15088,159.82,159.66,22.97464823]
[1633127743039,2.13,159.81,159.66,22.97464823]
[1633127743436,2.13,159.81,159.6,82.0035]
[1633127743639,2.13,159.81,159.61,73.5004]
[1633127744438,2.13,159.81,159.62,25.20704202]
[1633127745039,2.13,159.81,159.61,73.5004]
[1633127745241,49.13259942,159.81,159.59,193.53958]
[1633127745440,53.18,159.79,159.59,115.4414]
[1633127745640,53.18,159.76,159.5,3.6459644]
[1633127745839,53.18,159.73,159.5,0.02088]
[1633127746040,155.43118,159.72,159.49,3.62528217]
[1633127746239,0.02088,159.71,159.5,23.62118067]
[1633127746440,2.13,159.7,159.49,3.62528217]
[1633127746643,53.18,159.69,159.47,3.6257688]
[1633127746844,53.18,159.69,159.45,3.62618664]
[1633127746845,2.15088,159.68,159.45,3.62618664]
[1633127747046,0.02088,159.67,159.44,27.39301523]
[1633127747246,2.13,159.66,159.44,27.39301523]
[1633127747445,0.02088,159.65,159.45,26.03104347]
[1633127747644,15.6718,159.62,159.45,26.03104347]
[1633127747845,2.13,159.61,159.45,26.03104347]
[1633127748645,2.13,159.61,159.45,53.4240587]
[1633127748850,2.13,159.61,159.45,57.04975669]
[1633127749246,2.13,159.61,159.45,53.4240587]
[1633127749645,2.13,159.61,159.45,26.03104347]
[1633127749848,2.13,159.61,159.45,25.03104347]
[1633127751646,25.444,159.61,159.45,25.03104347]
[1633127752245,2.01,159.6,159.45,25.03104347]
[1633127752448,2.01,159.6,159.41,3.62520298]
[1633127752646,2.01,159.6,159.4,0.02088]
[1633127752846,2.01,159.6,159.38,3.62563747]
[1633127753049,2.01,159.6,159.36,73.9887]
[1633127753050,17.72533998,159.6,159.37,3.64631326]
[1633127753246,17.72533998,159.6,159.38,3.62530589]
[1633127753447,17.72533998,159.6,159.39,25.13731137]
[1633127753647,15.6763,159.57,159.39,25.13731137]
[1633127753847,2.01,159.56,159.39,25.13731137]
[1633127755949,22.797,159.56,159.37,27.41389523]
[1633127756149,15.6818,159.52,159.37,0.02088]
[1633127756351,15.6818,159.52,159.36,0.02088]
[1633127756352,34.9578,159.52,159.36,0.02088]
[1633127756549,34.9578,159.52,159.3,28.39301523]
[1633127756748,50.65225998,159.52,159.3,28.39301523]
[1633127756949,50.65225998,159.52,159.31,27.72995214]
[1633127757149,17.6918,159.52,159.31,30.35477648]
[1633127757349,2.01,159.52,159.32,31.03808715]
[1633127757551,2.01,159.52,159.38,0.02088]
[1633127757951,2.01,159.52,159.34,27.51233124]
[1633127758151,17.692,159.52,159.34,0.02088]
[1633127758352,17.692,159.52,159.33,0.02088]
[1633127758552,17.692,159.52,159.31,0.02088]
[1633127758952,17.692,159.52,159.31,25.89722857]
[1633127759153,17.692,159.52,159.32,23.75177261]
[1633127759555,17.692,159.52,159.33,0.02088]
[1633127759953,17.692,159.52,159.32,23.77265261]
[1633127760153,33.13006482,159.52,159.32,23.75177261]
[1633127761154,33.13006482,159.52,159.32,20.75177261]
[1633127761955,15.6913,159.43,159.3,1.0]
[1633127762154,17.7013,159.43,159.3,1.0]
[1633127763155,0.02088,159.42,159.3,1.0]
[1633127763358,2.01,159.41,159.3,1.0]
[1633127763556,2.03088,159.41,159.3,1.0]
[1633127764956,15.41718482,159.41,159.3,1.0]
[1633127765158,74.5955,159.5,159.38,0.02088]
[1633127765358,381.81897432,159.51,159.38,0.02088]
[1633127765758,2.01,159.61,159.38,31.34439938]
[1633127765957,2.01,159.61,159.41,0.02088]
[1633127766359,79.7117,159.65,159.41,0.02088]
[1633127766560,79.7117,159.65,159.41,21.70133376]
[1633127766759,15.6841,159.61,159.42,0.02088]
[1633127767360,15.6841,159.61,159.41,21.68045376]
[1633127767561,2.01,159.68,159.48,0.02088]
[1633127767759,2.01,159.68,159.54,0.02088]
[1633127767960,15.6762,159.69,159.54,0.02088]
[1633127768361,15.6762,159.69,159.51,0.02088]
[1633127768362,7.02936,159.68,159.51,0.02088]
[1633127768562,7.02936,159.68,159.49,25.66954299]
[1633127768563,7.02936,159.68,159.62,0.02088]
[1633127768762,2.01,159.77,159.56,0.02088]
[1633127770363,2.01,159.77,159.53,0.02088]
[1633127770764,2.01,159.77,159.53,30.77601049]
[1633127770963,2.01,159.77,159.54,0.02088]
[1633127771369,2.01,159.77,159.55,30.75513049]
[1633127771564,2.01,159.77,159.56,22.34387189]
[1633127771765,2.01,159.77,159.57,0.02088]
[1633127772366,9.03936,159.77,159.57,0.02088]
[1633127772566,22.25882098,159.77,159.57,0.02088]
[1633127772766,22.25882098,159.77,159.56,22.32299189]
[1633127772966,22.25882098,159.77,159.55,0.02088]
[1633127773166,22.25882098,159.77,159.45,2.01]
[1633127773377,15.6668,159.68,159.47,0.02088]
[1633127773567,9.03936,159.67,159.44,0.02088]
[1633127773766,9.03936,159.67,159.43,0.02088]
[1633127774366,22.75238032,159.67,159.43,0.02088]
[1633127774566,22.75238032,159.67,159.42,0.02088]
[1633127774567,22.77326032,159.67,159.42,0.02088]
[1633127775568,15.6769,159.57,159.42,0.02088]
[1633127775768,33.7929,159.57,159.42,0.02088]
[1633127777568,33.7929,159.57,159.39,0.02088]
[1633127777769,33.7929,159.57,159.37,0.02088]
[1633127777969,33.7929,159.57,159.36,0.02088]
[1633127778773,33.7929,159.57,159.36,30.77601049]
[1633127778970,33.7929,159.57,159.39,0.02088]
[1633127779571,15.6769,159.57,159.39,0.02088]
[1633127780575,15.6769,159.57,159.38,0.02088]
[1633127780775,2.01,159.56,159.38,0.02088]
[1633127781581,2.01,159.56,159.37,26.01811757]
[1633127781776,2.03088,159.56,159.37,25.99723757]
[1633127782578,14.26984726,159.55,159.37,25.99723757]
[1633127782778,2.03088,159.54,159.37,25.99723757]
[1633127782979,0.02088,159.53,159.37,25.99723757]
[1633127783177,2.01,159.52,159.37,25.99723757]
[1633127783781,17.6918,159.52,159.37,25.99723757]
[1633127784979,17.6918,159.52,159.37,25.49723757]
[1633127785780,2.01,159.52,159.37,25.49723757]
[1633127788380,2.01,159.52,159.32,3.64869073]
[1633127788580,2.01,159.52,159.32,0.02088]
[1633127788983,2.01,159.52,159.31,0.02088]
[1633127789381,2.01,159.52,159.31,59.16493074]
[1633127789580,2.01,159.52,159.32,0.02088]
[1633127790781,2.01,159.52,159.32,33.68184584]
[1633127792482,2.01,159.52,159.32,30.05378827]
[1633127793484,1.3831,159.52,159.32,30.05378827]
[1633127793883,0.7562,159.52,159.32,30.03290827]
[1633127795989,15.20358,159.53,159.32,30.03290827]
[1633127796190,2.01,159.52,159.32,30.03290827]
[1633127796594,2.01,159.52,159.31,25.48293318]
[1633127796595,7.02936,159.51,159.31,25.48293318]
[1633127796789,2.03088,159.5,159.31,25.48293318]
[1633127796991,7.05024,159.49,159.3,1.0]
[1633127797189,2.03088,159.48,159.3,1.0]
[1633127797392,7.05024,159.47,159.3,1.0]
[1633127797593,2.03088,159.46,159.3,1.0]
[1633127797793,15.6943,159.39,159.3,1.0]
[1633127797995,17.7043,159.39,159.3,1.0]
[1633127798395,17.7043,159.39,159.25,0.3]
[1633127798396,15.1292917,159.38,159.25,0.3]
[1633127798594,2.01,159.37,159.25,0.3]
[1633127798795,7.05024,159.36,159.25,0.3]
[1633127798996,15.6995,159.34,159.25,0.3]
[1633127799212,2.01,159.33,159.25,0.3]
[1633127799412,0.02088,159.32,159.17,148.6771]
[1633127799611,2.01,159.31,159.17,148.1771]
[1633127800011,17.1392917,159.31,159.18,24.65598119]
[1633127800612,15.7045,159.29,159.17,74.2585]
[1633127800816,17.7145,159.29,159.17,74.2585]
[1633127801014,17.7145,159.29,159.16,188.9621]
[1633127801615,35.32817882,159.16,159.08,3.63062241]
[1633127801819,48.18280596,159.07,158.98,947.56336313]
[1633127802016,35.32817882,159.07,158.97,73.5811]
[1633127802221,35.32817882,159.07,158.92,114.3843]
[1633127802817,35.32817882,159.07,158.93,27.34045131]
[1633127803217,60.06946396,158.78,158.77,9.08648944]
[1633127803420,28.45152869,159.06,158.73,11.89404668]
[1633127803620,28.45152869,159.06,158.68,147.32778233]
[1633127803621,3.3030859,158.78,158.68,147.32778233]
[1633127803820,0.0412976,158.87,158.68,147.32778233]
[1633127804021,0.0412976,158.84,158.68,145.82778233]
[1633127804221,2.01,158.83,158.62,26.80278753]
[1633127804423,2.01,158.83,158.56,40.44891041]
[1633127804424,50.13,158.78,158.56,12.41362135]
[1633127804620,2.01,158.77,158.56,12.41362135]
[1633127804822,0.0412976,158.63,158.56,12.41362135]
[1633127805221,2.01,158.71,158.56,12.41362135]
[1633127805422,2.01,158.71,158.37,2.53792107]
[1633127805423,50.13,158.62,158.25,85.89852878]
[1633127805623,50.13,158.52,158.21,9.08430581]
[1633127805822,9.03936,158.51,158.1,1500.0]
[1633127806028,15.8046,158.34,158.1,1498.5]
[1633127806223,50.13,158.25,158.1,1498.5]
[1633127806428,2.57222339,158.18,158.1,1487.9029445]
[1633127806624,49.56777661,158.17,158.1,1440.4498445]
[1633127806824,22.294,158.47,158.34,13.75512]
[1633127807029,2.01,158.46,158.11,92.0]
[1633127807225,84.97643581,158.11,158.1,1350.39584916]
[1633127807428,20.693,158.29,158.1,1350.39584916]
[1633127807625,2.01,158.28,158.1,1350.41672916]
[1633127807828,2.01,158.28,158.1,1350.39584916]
[1633127808032,77.28642889,158.27,158.1,1302.94084916]
[1633127808225,0.02088,158.12,158.11,23.93144496]
[1633127808426,1.98912001,158.12,158.11,23.93144496]
[1633127808632,15.8163,158.24,158.2,16.94824001]
[1633127808827,15.8089,158.31,158.2,16.94824001]
[1633127809026,20.60191741,158.3,158.2,16.94824001]
[1633127809231,20.60191741,158.3,158.1,1302.94084916]
[1633127809232,50.13,158.27,158.1,1302.94084916]
[1633127809427,50.13,158.24,158.1,1302.94084916]
[1633127809630,2.01,158.23,158.11,25.58197062]
[1633127809826,50.13,158.19,158.11,25.58197062]
[1633127810026,2.01,158.18,158.11,25.58197062]
[1633127810626,18.45,158.42,158.12,95.0]
[1633127810827,22.176,158.76,158.33,95.0]
[1633127811027,91.91276376,158.87,158.76,22.176]
[1633127811226,4.79411603,159.15,158.34,104.04115648]
[1633127811227,1.080874,159.23,158.51,23.019]
[1633127811428,7.02936,159.22,158.52,18.77103603]
[1633127811628,0.002,158.75,158.59,2.5955154]
[1633127811828,0.002,158.75,158.62,2.46856428]
[1633127812027,0.002,158.75,158.63,18.65614437]
[1633127812230,0.002,158.75,158.6,51.25042548]
[1633127812431,0.002,158.75,158.58,11.41339612]
[1633127812630,0.0421776,158.68,158.48,13.17034275]
[1633127812833,0.0421776,158.63,158.49,76.6056]
[1633127813031,0.0421776,158.45,158.39,31.4628]
[1633127813231,2.01,158.62,158.4,32.04149794]
[1633127813430,2.01,158.61,158.4,30.03149794]
[1633127813629,16.128,158.69,158.4,30.03149794]
[1633127813630,0.02088,158.58,158.4,30.03149794]
[1633127813828,2.01,158.57,158.4,30.03149794]
[1633127814028,0.02088,158.54,158.4,30.03149794]
[1633127814228,2.01,158.53,158.4,30.03149794]
[1633127814432,0.02088,158.5,158.4,30.03149794]
[1633127814630,30.03149794,158.4,158.25,2.01]
[1633127814831,30.03149794,158.4,158.23,0.02088]
[1633127815029,32.04149794,158.4,158.2,0.02088]
[1633127815235,30.03149794,158.4,158.18,2.03088]
[1633127815428,0.02088,158.46,158.4,32.04149794]
[1633127815630,0.02088,158.49,158.4,32.04149794]
[1633127815828,2.01,158.59,158.4,32.04149794]
[1633127816428,2.01,158.64,158.4,34.05149794]
[1633127816629,2.01,158.66,158.4,55.89817219]
[1633127816831,2.01,158.66,158.41,24.60392364]
[1633127817030,2.01,158.66,158.41,26.57174606]
[1633127817231,0.002,158.75,158.41,62.69812257]
[1633127817431,0.002,158.75,158.42,18.46052984]
[1633127817629,0.002,158.75,158.43,79.05927758]
[1633127817828,0.002,158.75,158.44,14.73057225]
[1633127818030,0.002,158.75,158.45,29.15202748]
[1633127818231,0.002,158.75,158.46,14.20556717]
[1633127818430,0.002,158.75,158.47,7.12697]
[1633127818630,0.002,158.75,158.48,14.29951769]
[1633127818831,0.002,158.75,158.48,59.40863638]
[1633127819031,0.002,158.75,158.48,76.22671662]
[1633127819230,1.89,158.74,158.49,25.92617334]
[1633127819431,8.09833076,158.73,158.5,74.9317]
[1633127819630,1.89,158.72,158.42,16.81808024]
[1633127819830,27.61408663,158.72,158.4,32.08367552]
[1633127820034,40.65240492,158.72,158.4,32.04149794]
[1633127820232,37.40462714,158.71,158.4,32.04149794]
[1633127820431,15.7742,158.6,158.4,32.04149794]
[1633127820633,8.09833076,158.59,158.4,32.04149794]
[1633127820834,1.89,158.58,158.4,32.04149794]
[1633127822032,1.89,158.64,158.4,32.04149794]
[1633127822231,1.89,158.64,158.4,46.95849794]
[1633127822832,27.00954695,158.63,158.41,26.57906717]
[1633127823034,1.89,158.62,158.41,26.57906717]
[1633127823231,1.89,158.67,158.41,26.57906717]
[1633127823431,1.89,158.7,158.41,26.57906717]
[1633127823637,1.89,158.7,158.42,11.68625354]
[1633127823833,760.87788791,159.0,158.42,7.12922]
[1633127824034,1.89,158.77,158.43,102.93328382]
[1633127824232,1.89,158.77,158.44,135.56122564]
[1633127824431,1.892,158.75,158.45,0.04217758]
[1633127824831,1.892,158.75,158.45,111.1205]
[1633127824832,26.72953084,158.75,158.45,111.1205]
[1633127825032,26.44512288,158.74,158.46,23.7431886]
[1633127825234,1.89,158.73,158.46,23.7431886]
[1633127825632,15.766,158.69,158.46,23.7431886]
[1633127825833,6.82731294,158.68,158.46,23.7431886]
[1633127826232,6.82731294,158.68,158.4,32.04149794]
[1633127826432,45.56982874,158.68,158.4,32.04149794]
[1633127826633,15.776,158.59,158.36,0.04217758]
[1633127826833,0.02088,158.54,158.21,0.02088]
[1633127827038,0.02088,158.51,158.18,0.02088]
[1633127827234,24.44968876,158.49,158.18,0.02088]
[1633127827434,0.02088,158.47,158.17,29.43069675]
[1633127827635,0.02088,158.44,158.17,29.40981675]
[1633127827838,24.22743622,158.42,158.17,29.40981675]
[1633127828034,0.02088,158.41,158.17,29.40981675]
[1633127828435,1.91088,158.41,158.17,29.40981675]
[1633127828636,28.9789431,158.38,158.17,29.40981675]
[1633127828838,0.02088,158.37,158.17,29.40981675]
[1633127829440,1.89,158.36,158.17,29.40981675]
[1633127829638,22.66416481,158.34,158.17,29.40981675]
[1633127829838,1.91088,158.33,158.17,29.40981675]
[1633127830038,0.02088,158.32,158.17,29.40981675]
[1633127831440,29.5858554,158.32,158.17,29.40981675]
[1633127831642,0.02088,158.31,158.17,29.40981675]
[1633127831841,0.02088,158.35,158.17,29.40981675]
[1633127832041,0.02088,158.4,158.17,29.43069675]
[1633127832240,0.02088,158.47,158.18,0.02088]
[1633127832441,0.02088,158.48,158.18,0.02088]
[1633127832643,29.02006104,158.48,158.19,16.71696913]
[1633127832847,29.02006104,158.48,158.21,0.02088]
[1633127833242,0.02088,158.47,158.21,0.02088]
[1633127833443,1.89,158.46,158.21,0.02088]
[1633127833642,0.02088,158.45,158.21,0.02088]
[1633127834047,1.89,158.54,158.23,56.0]
[1633127834245,1.89,158.58,158.24,21.74301782]
[1633127834443,17.6721,158.63,158.31,0.02305758]
[1633127834645,17.6721,158.63,158.38,0.02305758]
[1633127834845,1.89,158.7,158.38,19.29005758]
[1633127835043,1.89,158.72,158.42,0.02305758]
[1633127835244,1.89,158.72,158.45,0.02305758]
[1633127835448,1.89,158.72,158.5,0.02088]
[1633127835646,1.89,158.72,158.5,23.81288]
[1633127835845,23.85880285,158.71,158.51,26.83756725]
[1633127836044,23.85880285,158.71,158.51,26.81668725]
[1633127836646,23.85880285,158.71,158.52,0.02088]
[1633127836847,23.85880285,158.71,158.51,26.31668725]
[1633127837245,1.91088,158.7,158.51,26.31668725]
[1633127837646,0.02088,158.69,158.51,26.31668725]
[1633127837846,1.89,158.68,158.51,26.31668725]
[1633127838046,28.45892402,158.67,158.51,26.31668725]
[1633127838248,28.43804402,158.67,158.51,26.31668725]
[1633127839651,0.02088,158.71,158.51,26.31668725]
[1633127839847,0.02088,158.71,158.51,43.52668725]
[1633127840647,27.19370192,158.71,158.51,43.52668725]
[1633127840853,1.89,158.7,158.51,43.52668725]
[1633127841249,0.02088,158.69,158.51,43.52668725]
[1633127841449,1.89,158.68,158.51,43.52668725]
[1633127841649,27.3289844,158.67,158.51,43.52668725]
[1633127841848,27.3289844,158.67,158.51,13.21]
[1633127842051,0.02088,158.66,158.46,14.673]
[1633127842250,1.89,158.65,158.4,0.02088]
[1633127842452,0.02088,158.64,158.32,0.02088]
[1633127842659,0.02088,158.6,158.31,0.02088]
[1633127842853,1.89,158.59,158.31,21.95474647]
[1633127843055,29.22201266,158.58,158.32,0.02088]
[1633127843251,1.91088,158.57,158.32,0.02088]
[1633127843454,0.02088,158.56,158.32,0.02088]